[Event "*** Titled Tuesday Blitz"]
[Site "Chess.com"]
[Date "2019.11.05"]
[Round "1"]
[White "Gubajdullin"]
[Black "Ceejay271"]
[Result "1-0"]
[WhiteElo "2617"]
[BlackElo "2254"]
[TimeControl "180+2"]
[EndTime "13:06:26 PST"]
[Termination "Gubajdullin won by resignation"]

1. Nf3 {[%clk 0:02:55.1]} 1... d5 {[%clk 0:03:00.2]} 2. d3 {[%clk 0:02:54.4]}
2... Nf6 {[%clk 0:02:59.8]} 3. g3 {[%clk 0:02:53.9]} 3... c5 {[%clk 0:02:56.7]}
4. Bg2 {[%clk 0:02:55.8]} 4... Nc6 {[%clk 0:02:57]} 5. O-O {[%clk 0:02:55.8]}
5... e6 {[%clk 0:02:57.1]} 6. c3 {[%clk 0:02:51.7]} 6... g6 {[%clk 0:02:56.2]}
7. a4 {[%clk 0:02:53.6]} 7... Bg7 {[%clk 0:02:56.3]} 8. Na3 {[%clk 0:02:55]}
8... O-O {[%clk 0:02:56.4]} 9. Bf4 {[%clk 0:02:55.9]} 9... a6 {[%clk 0:02:54.6]}
10. Ne5 {[%clk 0:02:55.8]} 10... Nd7 {[%clk 0:02:51.8]} 11. Nxc6 {[%clk
0:02:55.7]} 11... bxc6 {[%clk 0:02:52.7]} 12. Nc2 {[%clk 0:02:51.5]} 12... e5
{[%clk 0:02:50.7]} 13. Be3 {[%clk 0:02:50.9]} 13... a5 {[%clk 0:02:47]} 14. Ra2
{[%clk 0:02:50]} 14... Rb8 {[%clk 0:02:43.5]} 15. Na1 {[%clk 0:02:49.7]} 15...
Qc7 {[%clk 0:02:39.8]} 16. Nb3 {[%clk 0:02:49.7]} 16... Qb6 {[%clk 0:02:35.7]}
17. Nd2 {[%clk 0:02:47.8]} 17... d4 {[%clk 0:02:33.6]} 18. Nc4 {[%clk
0:02:47.8]} 18... Qc7 {[%clk 0:02:32.6]} 19. Bg5 {[%clk 0:02:45]} 19... Re8
{[%clk 0:02:21.9]} 20. Qd2 {[%clk 0:02:39.1]} 20... Ba6 {[%clk 0:02:11.2]} 21.
Na3 {[%clk 0:02:34.3]} 21... Rb3 {[%clk 0:02:03.5]} 22. Nc2 {[%clk 0:02:25.1]}
22... Reb8 {[%clk 0:02:02.3]} 23. Na1 {[%clk 0:02:25.2]} 23... R3b7 {[%clk
0:01:59.2]} 24. c4 {[%clk 0:02:25.1]} 24... Re8 {[%clk 0:01:51.7]} 25. Rb1
{[%clk 0:02:24.7]} 25... Rbb8 {[%clk 0:01:49.4]} 26. Qe1 {[%clk 0:02:24.3]}
26... Ra8 {[%clk 0:01:49.2]} 27. Bd2 {[%clk 0:02:24.2]} 27... Bc8 {[%clk
0:01:49.3]} 28. Nb3 {[%clk 0:02:24.4]} 28... Qb6 {[%clk 0:01:41.3]} 29. Nxa5
{[%clk 0:02:23.8]} 29... Nb8 {[%clk 0:01:38.5]} 30. b4 {[%clk 0:02:23]} 30...
Bf5 {[%clk 0:01:35.2]} 31. b5 {[%clk 0:02:19.3]} 31... e4 {[%clk 0:01:32.1]} 32.
bxc6 {[%clk 0:02:19]} 32... Qc7 {[%clk 0:01:26.6]} 33. Rb7 {[%clk 0:02:18.2]}
33... Qd6 {[%clk 0:01:27]} 34. dxe4 {[%clk 0:02:09.8]} 34... Bxe4 {[%clk
0:01:26.3]} 35. c7 {[%clk 0:02:09]} 35... Nc6 {[%clk 0:01:18.2]} 36. Bxe4 {[%clk
0:01:52.8]} 36... Nxa5 {[%clk 0:01:15.1]} 37. Bxa5 {[%clk 0:01:52.4]} 37... Rxe4
{[%clk 0:01:10.9]} 38. Rab2 {[%clk 0:01:51.2]} 38... Rc8 {[%clk 0:01:08.9]} 39.
Rb8 {[%clk 0:01:50.8]} 39... Ree8 {[%clk 0:01:08.7]} 40. Rxc8 {[%clk 0:01:50.2]}
40... Rxc8 {[%clk 0:01:10.6]} 41. Qb1 {[%clk 0:01:49.6]} 41... Be5 {[%clk
0:01:08.6]} 42. Rb8 {[%clk 0:01:46.1]} 1-0

[Event "*** Titled Tuesday Blitz"]
[Site "Chess.com"]
[Date "2019.11.05"]
[Round "1"]
[White "RoelandPruijssers"]
[Black "Godzillator"]
[Result "1-0"]
[WhiteElo "2641"]
[BlackElo "2290"]
[TimeControl "180+2"]
[EndTime "13:06:28 PST"]
[Termination "RoelandPruijssers won by resignation"]

1. e4 {[%clk 0:03:00.2]} 1... c6 {[%clk 0:03:01.1]} 2. d4 {[%clk 0:03:00.5]}
2... d5 {[%clk 0:03:02.3]} 3. exd5 {[%clk 0:03:00]} 3... cxd5 {[%clk 0:03:03.1]}
4. Nf3 {[%clk 0:03:01.7]} 4... Nc6 {[%clk 0:03:02.1]} 5. Ne5 {[%clk 0:03:03.1]}
5... a6 {[%clk 0:03:01.7]} 6. c3 {[%clk 0:03:02.6]} 6... Nf6 {[%clk 0:03:02]} 7.
Bd3 {[%clk 0:03:02.8]} 7... e6 {[%clk 0:02:55.7]} 8. O-O {[%clk 0:02:58.9]} 8...
Be7 {[%clk 0:02:55.5]} 9. Qe2 {[%clk 0:02:58.3]} 9... Nxe5 {[%clk 0:02:55.4]}
10. dxe5 {[%clk 0:02:57.7]} 10... Nd7 {[%clk 0:02:56.7]} 11. Nd2 {[%clk
0:02:55.6]} 11... Qc7 {[%clk 0:02:56.7]} 12. Nf3 {[%clk 0:02:54.7]} 12... Nc5
{[%clk 0:02:57.7]} 13. Bc2 {[%clk 0:02:52.8]} 13... b6 {[%clk 0:02:58.9]} 14.
Bg5 {[%clk 0:02:44.9]} 14... h6 {[%clk 0:02:57]} 15. Bxe7 {[%clk 0:02:44.9]}
15... Qxe7 {[%clk 0:02:57.9]} 16. Nd4 {[%clk 0:02:45.8]} 16... Bb7 {[%clk
0:02:56.4]} 17. f4 {[%clk 0:02:45.4]} 17... g6 {[%clk 0:02:56.2]} 18. Qe3 {[%clk
0:02:40.8]} 18... h5 {[%clk 0:02:56.2]} 19. Rae1 {[%clk 0:02:35.7]} 19... a5
{[%clk 0:02:56.1]} 20. Nb5 {[%clk 0:02:31.2]} 20... Ba6 {[%clk 0:02:57.3]} 21.
Nd6+ {[%clk 0:02:30.3]} 21... Kf8 {[%clk 0:02:55.8]} 22. Rf2 {[%clk 0:02:30.3]}
22... Nb7 {[%clk 0:02:54.1]} 23. Qxb6 {[%clk 0:02:22.6]} 23... Nxd6 {[%clk
0:02:55.1]} 24. exd6 {[%clk 0:02:22.2]} 24... Qd7 {[%clk 0:02:56.3]} 25. Qd4
{[%clk 0:02:12.2]} 25... Kg8 {[%clk 0:02:52.9]} 26. Qf6 {[%clk 0:02:06.1]} 26...
Rh7 {[%clk 0:02:50.5]} 27. f5 {[%clk 0:01:42.9]} 27... exf5 {[%clk 0:02:46.4]}
28. Re7 {[%clk 0:01:26.9]} 28... Qc6 {[%clk 0:02:38.2]} 29. Qe5 {[%clk 0:01:07]}
29... Rd8 {[%clk 0:02:36.5]} 30. d7 {[%clk 0:01:04.3]} 30... Bb5 {[%clk
0:01:59.5]} 31. a4 {[%clk 0:00:57.9]} 31... f6 {[%clk 0:01:47.5]} 32. Re8+
{[%clk 0:00:33.1]} 32... Rxe8 {[%clk 0:01:48.1]} 33. Qxe8+ {[%clk 0:00:34.1]}
33... Kg7 {[%clk 0:01:45.5]} 34. axb5 {[%clk 0:00:35.5]} 34... Qxb5 {[%clk
0:01:38]} 35. d8=Q {[%clk 0:00:36.3]} 35... Kh6 {[%clk 0:01:35.8]} 36. Qxb5
{[%clk 0:00:36.5]} 1-0

[Event "*** Titled Tuesday Blitz"]
[Site "Chess.com"]
[Date "2019.11.05"]
[Round "1"]
[White "AtabayevSaparmyrat"]
[Black "Walter_White_Poland"]
[Result "1-0"]
[WhiteElo "2643"]
[BlackElo "2291"]
[TimeControl "180+2"]
[EndTime "13:06:30 PST"]
[Termination "AtabayevSaparmyrat won by resignation"]

1. e4 {[%clk 0:03:00]} 1... e5 {[%clk 0:03:00.7]} 2. Nf3 {[%clk 0:03:01.1]} 2...
Nc6 {[%clk 0:02:44.7]} 3. Bb5 {[%clk 0:03:02.2]} 3... a6 {[%clk 0:02:45.6]} 4.
Ba4 {[%clk 0:03:03.2]} 4... Nf6 {[%clk 0:02:44.2]} 5. O-O {[%clk 0:03:03.8]}
5... b5 {[%clk 0:02:44.3]} 6. Bb3 {[%clk 0:03:04.5]} 6... Be7 {[%clk 0:02:45.7]}
7. Re1 {[%clk 0:03:05.1]} 7... d6 {[%clk 0:02:46]} 8. h3 {[%clk 0:03:05.7]} 8...
Na5 {[%clk 0:02:44.3]} 9. c3 {[%clk 0:03:02.4]} 9... Nxb3 {[%clk 0:02:44.7]} 10.
axb3 {[%clk 0:03:04.3]} 10... O-O {[%clk 0:02:44.8]} 11. b4 {[%clk 0:03:04.2]}
11... Bb7 {[%clk 0:02:40.7]} 12. d3 {[%clk 0:03:04.7]} 12... c6 {[%clk
0:02:34.2]} 13. Nbd2 {[%clk 0:03:04.3]} 13... a5 {[%clk 0:02:34.8]} 14. bxa5
{[%clk 0:03:02.7]} 14... Rxa5 {[%clk 0:02:35.6]} 15. Rxa5 {[%clk 0:03:00.4]}
15... Qxa5 {[%clk 0:02:36.6]} 16. b4 {[%clk 0:03:02.3]} 16... Qa2 {[%clk
0:01:46.1]} 17. Nb3 {[%clk 0:02:55.1]} 17... Bd8 {[%clk 0:01:44.8]} 18. Bg5
{[%clk 0:02:43.6]} 18... h6 {[%clk 0:01:42.4]} 19. Bxf6 {[%clk 0:02:40.6]} 19...
Bxf6 {[%clk 0:01:43.1]} 20. Na5 {[%clk 0:02:36.8]} 20... Ba8 {[%clk 0:01:22.7]}
21. Qb3 {[%clk 0:02:37.6]} 21... Qxb3 {[%clk 0:01:14.6]} 22. Nxb3 {[%clk
0:02:39.5]} 22... Bb7 {[%clk 0:01:04.3]} 23. Na5 {[%clk 0:02:39.4]} 23... Ba8
{[%clk 0:01:04.9]} 24. Ra1 {[%clk 0:02:34.7]} 24... c5 {[%clk 0:01:00.4]} 25.
bxc5 {[%clk 0:02:23.6]} 25... dxc5 {[%clk 0:01:01]} 26. c4 {[%clk 0:02:24.4]}
26... b4 {[%clk 0:00:40.5]} 27. Nb3 {[%clk 0:02:23.9]} 27... Be7 {[%clk
0:00:32.8]} 28. Nxe5 {[%clk 0:02:23.7]} 28... Bf6 {[%clk 0:00:32.9]} 29. f4
{[%clk 0:02:24.6]} 29... g5 {[%clk 0:00:33.3]} 30. Ra6 {[%clk 0:02:18.9]} 30...
Bxe5 {[%clk 0:00:14.2]} 31. fxe5 {[%clk 0:02:20.8]} 31... Rd8 {[%clk 0:00:09]}
32. Nxc5 {[%clk 0:02:19]} 32... Rb8 {[%clk 0:00:07.5]} 33. Nb3 {[%clk
0:02:19.4]} 33... Rd8 {[%clk 0:00:07.5]} 34. Kf2 {[%clk 0:02:18.3]} 34... Kg7
{[%clk 0:00:06.1]} 35. Ke3 {[%clk 0:02:18.8]} 1-0

[Event "*** Titled Tuesday Blitz"]
[Site "Chess.com"]
[Date "2019.11.05"]
[Round "1"]
[White "KhalilMousavi77"]
[Black "Misha_Bilous"]
[Result "1-0"]
[WhiteElo "2888"]
[BlackElo "2487"]
[TimeControl "180+2"]
[EndTime "13:06:52 PST"]
[Termination "KhalilMousavi77 won by resignation"]

1. c4 {[%clk 0:03:01.7]} 1... Nf6 {[%clk 0:03:00]} 2. Nc3 {[%clk 0:03:02.9]}
2... g6 {[%clk 0:03:00]} 3. g3 {[%clk 0:03:04.2]} 3... Bg7 {[%clk 0:03:01.1]} 4.
Bg2 {[%clk 0:03:06]} 4... O-O {[%clk 0:03:02.5]} 5. e3 {[%clk 0:03:07.8]} 5...
d6 {[%clk 0:03:00.2]} 6. Nge2 {[%clk 0:03:09.5]} 6... e5 {[%clk 0:03:00.2]} 7.
O-O {[%clk 0:03:11.1]} 7... c6 {[%clk 0:02:58.6]} 8. d4 {[%clk 0:03:12.3]} 8...
Nbd7 {[%clk 0:02:55.4]} 9. h3 {[%clk 0:03:12]} 9... Re8 {[%clk 0:02:56.5]} 10.
b3 {[%clk 0:03:13.3]} 10... e4 {[%clk 0:02:47.3]} 11. g4 {[%clk 0:03:14.4]}
11... h6 {[%clk 0:02:41.4]} 12. Ng3 {[%clk 0:03:15.8]} 12... d5 {[%clk
0:02:42.1]} 13. cxd5 {[%clk 0:03:17.2]} 13... cxd5 {[%clk 0:02:42.8]} 14. f3
{[%clk 0:03:18.8]} 14... Qc7 {[%clk 0:02:16.1]} 15. Nge2 {[%clk 0:03:13]} 15...
exf3 {[%clk 0:02:11.7]} 16. Bxf3 {[%clk 0:03:09.6]} 16... Nb6 {[%clk 0:02:12.7]}
17. Bd2 {[%clk 0:03:01.1]} 17... h5 {[%clk 0:02:03.9]} 18. Rc1 {[%clk
0:02:49.1]} 18... Qd8 {[%clk 0:01:45.3]} 19. gxh5 {[%clk 0:02:39.8]} 19... Bxh3
{[%clk 0:01:41.2]} 20. hxg6 {[%clk 0:02:39.8]} 20... Bxf1 {[%clk 0:01:33.6]} 21.
gxf7+ {[%clk 0:02:40.8]} 21... Kxf7 {[%clk 0:01:34.6]} 22. Qxf1 {[%clk
0:02:42.7]} 22... Rg8 {[%clk 0:01:27.1]} 23. Qh3 {[%clk 0:02:19.2]} 23... Qc8
{[%clk 0:01:04.1]} 24. Bh5+ {[%clk 0:02:12.1]} 24... Ke7 {[%clk 0:00:53.8]} 25.
Nxd5+ {[%clk 0:02:13.2]} 25... Nfxd5 {[%clk 0:00:45.1]} 26. Rxc8 {[%clk
0:02:10.7]} 26... Raxc8 {[%clk 0:00:47]} 27. Bg4 {[%clk 0:02:04.1]} 27... Rc2
{[%clk 0:00:40.4]} 28. Qh7 {[%clk 0:02:05]} 28... Rxd2 {[%clk 0:00:10.2]} 29.
Qxg8 {[%clk 0:02:05]} 29... Bf6 {[%clk 0:00:09.1]} 30. Qe6+ {[%clk 0:02:05.2]}
30... Kf8 {[%clk 0:00:08.8]} 31. Bh5 {[%clk 0:02:05.3]} 31... Kg7 {[%clk
0:00:07.6]} 32. Qf7+ {[%clk 0:02:04.9]} 32... Kh8 {[%clk 0:00:08.8]} 33. Bg6
{[%clk 0:02:05.9]} 33... Rd1+ {[%clk 0:00:09.1]} 34. Kh2 {[%clk 0:01:53]} 1-0

[Event "*** Titled Tuesday Blitz"]
[Site "Chess.com"]
[Date "2019.11.05"]
[Round "1"]
[White "vugarrasulov"]
[Black "2nd_life"]
[Result "1-0"]
[WhiteElo "2762"]
[BlackElo "2407"]
[TimeControl "180+2"]
[EndTime "13:06:53 PST"]
[Termination "vugarrasulov won by resignation"]

1. e4 {[%clk 0:03:01.9]} 1... e5 {[%clk 0:02:59.3]} 2. Nf3 {[%clk 0:03:02]} 2...
Nc6 {[%clk 0:02:59.6]} 3. Bb5 {[%clk 0:03:03.5]} 3... a6 {[%clk 0:02:57.8]} 4.
Ba4 {[%clk 0:03:05]} 4... Nf6 {[%clk 0:02:56.2]} 5. O-O {[%clk 0:03:06.4]} 5...
Be7 {[%clk 0:02:49.9]} 6. Re1 {[%clk 0:03:07.8]} 6... b5 {[%clk 0:02:47.7]} 7.
Bb3 {[%clk 0:03:09.3]} 7... O-O {[%clk 0:02:49.5]} 8. c3 {[%clk 0:03:10.8]} 8...
d6 {[%clk 0:02:50.6]} 9. h3 {[%clk 0:03:11.3]} 9... Bb7 {[%clk 0:02:51.8]} 10.
d4 {[%clk 0:03:11.6]} 10... Re8 {[%clk 0:02:53]} 11. Nbd2 {[%clk 0:03:11.7]}
11... Bf8 {[%clk 0:02:54]} 12. a4 {[%clk 0:03:02.8]} 12... h6 {[%clk 0:02:54.8]}
13. Bc2 {[%clk 0:03:02.1]} 13... exd4 {[%clk 0:02:53.9]} 14. cxd4 {[%clk
0:03:04]} 14... Nb4 {[%clk 0:02:46.4]} 15. Bb1 {[%clk 0:03:05.3]} 15... c5
{[%clk 0:02:42.7]} 16. d5 {[%clk 0:03:04.9]} 16... Nd7 {[%clk 0:02:42.2]} 17.
Nf1 {[%clk 0:02:53.2]} 17... c4 {[%clk 0:02:34]} 18. Bd2 {[%clk 0:02:38]} 18...
Nd3 {[%clk 0:02:31.1]} 19. Bxd3 {[%clk 0:02:39.2]} 19... cxd3 {[%clk 0:02:29]}
20. Ng3 {[%clk 0:02:28.7]} 20... g6 {[%clk 0:02:18.7]} 21. Bc3 {[%clk
0:02:23.1]} 21... Nc5 {[%clk 0:02:12]} 22. axb5 {[%clk 0:02:23.3]} 22... axb5
{[%clk 0:02:12.1]} 23. Rxa8 {[%clk 0:02:24.3]} 23... Bxa8 {[%clk 0:02:12]} 24.
b4 {[%clk 0:02:24]} 24... Na4 {[%clk 0:02:07.3]} 25. Bd4 {[%clk 0:02:24.1]}
25... Nb6 {[%clk 0:01:56.4]} 26. Qxd3 {[%clk 0:02:18.4]} 26... Nc4 {[%clk
0:01:54.4]} 27. Ra1 {[%clk 0:02:14]} 27... Bb7 {[%clk 0:01:54.4]} 28. Nd2 {[%clk
0:02:13.7]} 28... Qc7 {[%clk 0:01:44.9]} 29. Nxc4 {[%clk 0:02:06.9]} 29... bxc4
{[%clk 0:01:45.1]} 30. Qc3 {[%clk 0:02:08.4]} 30... h5 {[%clk 0:01:41]} 31. f3
{[%clk 0:02:09.1]} 31... Ra8 {[%clk 0:01:35.2]} 32. Rxa8 {[%clk 0:02:07.4]}
32... Bxa8 {[%clk 0:01:27]} 33. b5 {[%clk 0:02:08.9]} 33... Bb7 {[%clk
0:01:25.7]} 34. Nf1 {[%clk 0:02:07.2]} 34... Bh6 {[%clk 0:01:20.1]} 35. Nd2
{[%clk 0:02:06.4]} 35... Qd7 {[%clk 0:01:13.8]} 36. b6 {[%clk 0:01:56.5]} 36...
Qb5 {[%clk 0:01:09.9]} 37. Qxc4 {[%clk 0:01:44.7]} 37... Qa5 {[%clk 0:01:05.9]}
38. Nf1 {[%clk 0:01:46.1]} 38... Qe1 {[%clk 0:01:04.2]} 39. Bc3 {[%clk
0:01:42.9]} 39... Qc1 {[%clk 0:01:03.7]} 40. Qd4 {[%clk 0:01:42.8]} 40... Kf8
{[%clk 0:00:53.5]} 41. Qh8+ {[%clk 0:01:43.4]} 41... Ke7 {[%clk 0:00:54.3]} 42.
Bf6+ {[%clk 0:01:45]} 1-0

[Event "*** Titled Tuesday Blitz"]
[Site "Chess.com"]
[Date "2019.11.05"]
[Round "1"]
[White "rasmussvane"]
[Black "PotapovaM"]
[Result "1-0"]
[WhiteElo "2829"]
[BlackElo "2442"]
[TimeControl "180+2"]
[EndTime "13:06:57 PST"]
[Termination "rasmussvane won by checkmate"]

1. Nf3 {[%clk 0:03:01.9]} 1... Nf6 {[%clk 0:02:57.8]} 2. g3 {[%clk 0:03:02.9]}
2... b5 {[%clk 0:02:53.8]} 3. Bg2 {[%clk 0:03:01.9]} 3... Bb7 {[%clk 0:02:55.1]}
4. Na3 {[%clk 0:03:03.4]} 4... b4 {[%clk 0:02:54.2]} 5. Nc4 {[%clk 0:03:04.2]}
5... a5 {[%clk 0:02:52.7]} 6. d3 {[%clk 0:03:00.2]} 6... e6 {[%clk 0:02:50.7]}
7. O-O {[%clk 0:02:58.9]} 7... Be7 {[%clk 0:02:49.8]} 8. a3 {[%clk 0:02:55.2]}
8... bxa3 {[%clk 0:02:47.6]} 9. b3 {[%clk 0:02:30.3]} 9... O-O {[%clk
0:02:40.1]} 10. Bxa3 {[%clk 0:02:31.1]} 10... Nc6 {[%clk 0:02:11.7]} 11. Qd2
{[%clk 0:02:19.2]} 11... Bb4 {[%clk 0:02:02.1]} 12. Bxb4 {[%clk 0:01:35.2]}
12... axb4 {[%clk 0:02:04]} 13. e4 {[%clk 0:01:36.7]} 13... d6 {[%clk
0:01:59.7]} 14. h3 {[%clk 0:01:31.9]} 14... e5 {[%clk 0:01:57.9]} 15. Nh4 {[%clk
0:01:29.4]} 15... g6 {[%clk 0:01:32.3]} 16. Rxa8 {[%clk 0:01:27.5]} 16... Bxa8
{[%clk 0:01:21.4]} 17. Ne3 {[%clk 0:01:22.9]} 17... Bb7 {[%clk 0:01:17.3]} 18.
Nd5 {[%clk 0:01:22.6]} 18... Nxd5 {[%clk 0:01:09.8]} 19. exd5 {[%clk 0:01:24.5]}
19... Ne7 {[%clk 0:01:11.4]} 20. Qxb4 {[%clk 0:01:25.5]} 20... Bxd5 {[%clk
0:01:12]} 21. Nf3 {[%clk 0:01:21.3]} 21... f6 {[%clk 0:01:00.5]} 22. Re1 {[%clk
0:01:21.5]} 22... Bf7 {[%clk 0:01:00.8]} 23. d4 {[%clk 0:01:19.8]} 23... Nd5
{[%clk 0:00:57.1]} 24. Qd2 {[%clk 0:01:20.7]} 24... Ne7 {[%clk 0:00:42.6]} 25.
h4 {[%clk 0:01:20.7]} 25... Kg7 {[%clk 0:00:34.8]} 26. c4 {[%clk 0:01:19.9]}
26... Qb8 {[%clk 0:00:34.6]} 27. Qc3 {[%clk 0:01:21.1]} 27... Qa7 {[%clk
0:00:31.8]} 28. dxe5 {[%clk 0:01:21]} 28... dxe5 {[%clk 0:00:28.2]} 29. Nxe5
{[%clk 0:01:21.4]} 29... fxe5 {[%clk 0:00:14.8]} 30. Rxe5 {[%clk 0:01:16.5]}
30... Kg8 {[%clk 0:00:09]} 31. Rxe7 {[%clk 0:01:17.3]} 31... Be6 {[%clk
0:00:08.1]} 32. Qg7# {[%clk 0:01:17.9]} 1-0

[Event "*** Titled Tuesday Blitz"]
[Site "Chess.com"]
[Date "2019.11.05"]
[Round "1"]
[White "Oligan22"]
[Black "BlueWizzard"]
[Result "0-1"]
[WhiteElo "2466"]
[BlackElo "2852"]
[TimeControl "180+2"]
[EndTime "13:07:00 PST"]
[Termination "BlueWizzard won by resignation"]

1. e4 {[%clk 0:03:01.9]} 1... a6 {[%clk 0:03:01.9]} 2. d4 {[%clk 0:03:02.8]}
2... d6 {[%clk 0:03:02.8]} 3. Nf3 {[%clk 0:03:04]} 3... b5 {[%clk 0:03:03.6]} 4.
Bd3 {[%clk 0:03:04.1]} 4... Bb7 {[%clk 0:03:04.8]} 5. O-O {[%clk 0:03:04.9]}
5... e6 {[%clk 0:03:06.4]} 6. a4 {[%clk 0:03:04.1]} 6... b4 {[%clk 0:03:07.1]}
7. c3 {[%clk 0:02:55.7]} 7... c5 {[%clk 0:03:01.1]} 8. cxb4 {[%clk 0:02:49.5]}
8... cxb4 {[%clk 0:03:01.8]} 9. Nbd2 {[%clk 0:02:38.3]} 9... Nf6 {[%clk
0:03:00.4]} 10. Re1 {[%clk 0:02:36.2]} 10... Be7 {[%clk 0:02:57.4]} 11. a5
{[%clk 0:02:28.9]} 11... O-O {[%clk 0:02:53.2]} 12. Nc4 {[%clk 0:02:27.1]} 12...
Nbd7 {[%clk 0:02:48.7]} 13. e5 {[%clk 0:02:21]} 13... dxe5 {[%clk 0:02:47.9]}
14. dxe5 {[%clk 0:02:11.5]} 14... Nd5 {[%clk 0:02:48.6]} 15. Ne3 {[%clk
0:01:19.3]} 15... Nc5 {[%clk 0:02:35.7]} 16. Bc4 {[%clk 0:01:00.2]} 16... Nf4
{[%clk 0:02:21.7]} 17. Ng4 {[%clk 0:00:43.3]} 17... Nfd3 {[%clk 0:01:53.3]} 18.
Re3 {[%clk 0:00:44.1]} 18... Nxc1 {[%clk 0:01:52.4]} 19. Qxd8 {[%clk 0:00:18.5]}
19... Rfxd8 {[%clk 0:01:45.3]} 20. Rxc1 {[%clk 0:00:19.8]} 20... h5 {[%clk
0:01:46.2]} 21. Nf6+ {[%clk 0:00:13.3]} 21... gxf6 {[%clk 0:01:46.9]} 22. exf6
{[%clk 0:00:14.5]} 22... Bxf6 {[%clk 0:01:45.9]} 23. Bf1 {[%clk 0:00:15.2]}
23... Rac8 {[%clk 0:01:34.7]} 24. h4 {[%clk 0:00:13.2]} 24... Bxb2 {[%clk
0:01:34.2]} 25. Rb1 {[%clk 0:00:14.1]} 25... Bc3 {[%clk 0:01:33.7]} 26. Ng5
{[%clk 0:00:14.9]} 26... Rd4 {[%clk 0:01:30]} 27. g3 {[%clk 0:00:15.6]} 27...
Rcd8 {[%clk 0:01:29.4]} 28. Be2 {[%clk 0:00:16.9]} 28... Ne4 {[%clk 0:01:11.3]}
29. Bxh5 {[%clk 0:00:16.5]} 29... Nxg5 {[%clk 0:01:10]} 30. hxg5 {[%clk
0:00:16.8]} 30... Kg7 {[%clk 0:01:08.6]} 31. Be2 {[%clk 0:00:16.3]} 31... Rh8
{[%clk 0:01:09.1]} 32. f4 {[%clk 0:00:17.3]} 32... Rd2 {[%clk 0:01:09.5]} 0-1

[Event "*** Titled Tuesday Blitz"]
[Site "Chess.com"]
[Date "2019.11.05"]
[Round "1"]
[White "TregubovP"]
[Black "DonBroca"]
[Result "1-0"]
[WhiteElo "2541"]
[BlackElo "2006"]
[TimeControl "180+2"]
[EndTime "13:07:03 PST"]
[Termination "TregubovP won by resignation"]

1. e4 {[%clk 0:02:55]} 1... c5 {[%clk 0:03:00.8]} 2. Nf3 {[%clk 0:02:54]} 2...
d6 {[%clk 0:03:01.6]} 3. c3 {[%clk 0:02:54.1]} 3... Nf6 {[%clk 0:03:02.2]} 4.
Be2 {[%clk 0:02:54.6]} 4... g6 {[%clk 0:03:02.8]} 5. O-O {[%clk 0:02:54.5]} 5...
Bg7 {[%clk 0:03:02.5]} 6. Bb5+ {[%clk 0:02:53.9]} 6... Nc6 {[%clk 0:02:58.8]} 7.
d4 {[%clk 0:02:49.1]} 7... O-O {[%clk 0:02:47.5]} 8. d5 {[%clk 0:02:45.8]} 8...
Na5 {[%clk 0:02:45.8]} 9. Re1 {[%clk 0:02:42.7]} 9... a6 {[%clk 0:02:38.1]} 10.
Bf1 {[%clk 0:02:42.3]} 10... b5 {[%clk 0:02:28.1]} 11. Bf4 {[%clk 0:02:40]}
11... Nd7 {[%clk 0:01:47.2]} 12. Nbd2 {[%clk 0:02:36.7]} 12... c4 {[%clk
0:01:26.7]} 13. Rc1 {[%clk 0:02:26.1]} 13... Bb7 {[%clk 0:01:26.7]} 14. b4
{[%clk 0:02:15.2]} 14... cxb3 {[%clk 0:01:27.2]} 15. axb3 {[%clk 0:02:16.4]}
15... Rc8 {[%clk 0:01:25.3]} 16. b4 {[%clk 0:02:13.1]} 16... Nc4 {[%clk
0:01:24.5]} 17. Nxc4 {[%clk 0:02:14.1]} 17... bxc4 {[%clk 0:01:26.4]} 18. Nd2
{[%clk 0:02:07.7]} 18... Nb6 {[%clk 0:01:21.5]} 19. Be3 {[%clk 0:02:08.4]} 19...
Nxd5 {[%clk 0:00:28.9]} 20. exd5 {[%clk 0:02:04]} 20... Bxd5 {[%clk 0:00:30.8]}
21. Nf3 {[%clk 0:01:46.2]} 21... e6 {[%clk 0:00:27.3]} 22. Bd4 {[%clk
0:01:42.1]} 22... e5 {[%clk 0:00:13.7]} 23. Be3 {[%clk 0:01:33.5]} 23... Be6
{[%clk 0:00:14.9]} 24. Ra1 {[%clk 0:01:28.7]} 24... Ra8 {[%clk 0:00:14.6]} 25.
Ng5 {[%clk 0:01:28.1]} 25... Qd7 {[%clk 0:00:05.7]} 26. Nxe6 {[%clk 0:01:11.9]}
26... Qxe6 {[%clk 0:00:07.6]} 27. g3 {[%clk 0:01:09.5]} 27... d5 {[%clk
0:00:07.4]} 28. Bg2 {[%clk 0:01:08.4]} 28... Rfd8 {[%clk 0:00:09]} 29. Ra5
{[%clk 0:01:03.9]} 29... d4 {[%clk 0:00:03.7]} 30. Bxa8 {[%clk 0:01:03.8]} 1-0